Department Family,Entity,Date Paid,Expense Type,Expense Area,Supplier,Transaction Number,Amount (�),Supplier VAT Registration Number
BEIS,Met Office,03/05/2022,06 ACCOMMODATION,CHIEF FINANCIAL OFFICER,SAFESTORE LTD,451101,3200.35,722887607
BEIS,Met Office,03/05/2022,06 ACCOMMODATION,CHIEF FINANCIAL OFFICER,SAFESTORE LTD,451306,-3200.35,722887607
BEIS,Met Office,03/05/2022,06 ACCOMMODATION,CHIEF FINANCIAL OFFICER,SAFESTORE LTD,451308,2815.28,722887607
BEIS,Met Office,03/05/2022,11 SERVICES,CHIEF FINANCIAL OFFICER,POSTURITE (UK) LTD,465690,50,583565114
BEIS,Met Office,03/05/2022,11 SERVICES,TECHNOLOGY AND CIO,BAE SYSTEMS APPLIED INTELLIGENCE LIMITED,467053,9380,GB641407169
BEIS,Met Office,03/05/2022,11 SERVICES,CHIEF FINANCIAL OFFICER,POSTURITE (UK) LTD,467255,34.6,583565114
BEIS,Met Office,03/05/2022,11 SERVICES,CHIEF FINANCIAL OFFICER,POSTURITE (UK) LTD,467258,47.88,583565114
BEIS,Met Office,03/05/2022,11 SERVICES,CHIEF FINANCIAL OFFICER,POSTURITE (UK) LTD,467265,31.61,583565114
BEIS,Met Office,03/05/2022,12 INTERNATIONAL,MARKETS,APPLIED SATELLITE TECHNOLOGY SYSTEMS LTD,467383,32.6,720108683
BEIS,Met Office,03/05/2022,11 SERVICES,MARKETS,JOHN SARGENT TRADING AS NAVIGATOR,467396,10160,-
BEIS,Met Office,03/05/2022,11 SERVICES,CHIEF FINANCIAL OFFICER,POSTURITE (UK) LTD,467409,20.49,583565114
BEIS,Met Office,03/05/2022,11 SERVICES,TECHNOLOGY AND CIO,BAE SYSTEMS APPLIED INTELLIGENCE LIMITED,467468,11225.75,GB641407169
BEIS,Met Office,03/05/2022,11 SERVICES,TECHNOLOGY AND CIO,BAE SYSTEMS APPLIED INTELLIGENCE LIMITED,467469,2250,GB641407169
BEIS,Met Office,03/05/2022,11 SERVICES,TECHNOLOGY AND CIO,BAE SYSTEMS APPLIED INTELLIGENCE LIMITED,467470,9787.5,GB641407169
BEIS,Met Office,03/05/2022,11 SERVICES,TECHNOLOGY AND CIO,BAE SYSTEMS APPLIED INTELLIGENCE LIMITED,467471,12443,GB641407169
BEIS,Met Office,03/05/2022,11 SERVICES,TECHNOLOGY AND CIO,BAE SYSTEMS APPLIED INTELLIGENCE LIMITED,467472,10800,GB641407169
BEIS,Met Office,03/05/2022,11 SERVICES,TECHNOLOGY AND CIO,BAE SYSTEMS APPLIED INTELLIGENCE LIMITED,467473,15180,GB641407169
BEIS,Met Office,03/05/2022,11 SERVICES,TECHNOLOGY AND CIO,BAE SYSTEMS APPLIED INTELLIGENCE LIMITED,467474,22512,GB641407169
BEIS,Met Office,03/05/2022,11 SERVICES,TECHNOLOGY AND CIO,BAE SYSTEMS APPLIED INTELLIGENCE LIMITED,467475,5410,GB641407169
BEIS,Met Office,03/05/2022,11 SERVICES,TECHNOLOGY AND CIO,BAE SYSTEMS APPLIED INTELLIGENCE LIMITED,467476,15180,GB641407169
BEIS,Met Office,03/05/2022,11 SERVICES,TECHNOLOGY AND CIO,BAE SYSTEMS APPLIED INTELLIGENCE LIMITED,467477,24120,GB641407169
BEIS,Met Office,03/05/2022,13 MISCELLANEOUS,PEOPLE,HEALTH MANAGEMENT LTD,467498,4020.76,792250621
BEIS,Met Office,03/05/2022,11 SERVICES,CHIEF FINANCIAL OFFICER,MITIE SECURITY LTD,467505,3117,416706654
BEIS,Met Office,03/05/2022,11 SERVICES,CHIEF FINANCIAL OFFICER,MITIE SECURITY LTD,467505,7273.5,416706654
BEIS,Met Office,03/05/2022,11 SERVICES,CHIEF FINANCIAL OFFICER,MITIE SECURITY LTD,467507,20780.59,416706654
BEIS,Met Office,03/05/2022,11 SERVICES,CHIEF FINANCIAL OFFICER,WEBEX COMMUNICATIONS UK LTD,467514,209.92,815974302
BEIS,Met Office,03/05/2022,11 SERVICES,PROGRAMMES,SCIENCE & TECHNOLOGY FACILITIES COUNCIL,467552,50000,287461957
BEIS,Met Office,03/05/2022,11 SERVICES,CHIEF FINANCIAL OFFICER,POSTURITE (UK) LTD,467553,673.32,583565114
BEIS,Met Office,03/05/2022,11 SERVICES,CHIEF FINANCIAL OFFICER,BT plc,467560,876.22,245719348
BEIS,Met Office,03/05/2022,06 ACCOMMODATION,CHIEF FINANCIAL OFFICER,CBRE MANAGED SERVICES LTD,467561,17359.51,853936883
BEIS,Met Office,03/05/2022,06 ACCOMMODATION,CHIEF FINANCIAL OFFICER,CBRE MANAGED SERVICES LTD,467563,27142.61,853936883
BEIS,Met Office,03/05/2022,04 CONTRACTORS,PEOPLE,MATRIX SCM LIMITED,467567,260833.37,249 5734 68
BEIS,Met Office,03/05/2022,11 SERVICES,PEOPLE,SPOCE,467569,7975.8,619 8641 07
BEIS,Met Office,03/05/2022,11 SERVICES,PROGRAMMES,FCDO,467570,2693.85,888813560
BEIS,Met Office,03/05/2022,13 MISCELLANEOUS,CHIEF FINANCIAL OFFICER,GALLAGHER RISK & REWARD LTD,467573,1621.42,-
BEIS,Met Office,03/05/2022,13 MISCELLANEOUS,CHIEF FINANCIAL OFFICER,EDEN SPRINGS UK LTD,467615,439.49,232160411
BEIS,Met Office,03/05/2022,11 SERVICES,PEOPLE,ACTIVE LEARNING TEAM LTD,467619,1400,-
BEIS,Met Office,03/05/2022,10 EQUIPMENT MAINTENANCE,TECHNOLOGY AND CIO,COMPUTACENTER (UK) LTD,467620,2696.48,490334648
BEIS,Met Office,03/05/2022,07 EQUIPMENT,SERVICES,OTT HYDROMET,467624,51752.25,737592693
BEIS,Met Office,03/05/2022,06 ACCOMMODATION,CHIEF FINANCIAL OFFICER,OCS Group UK Limited,467631,151788.3,GB238034379
BEIS,Met Office,03/05/2022,13 MISCELLANEOUS,SCIENCE,NATIONAL INSTRUMENTS CORP UK LTD,467636,2875,493598779
BEIS,Met Office,03/05/2022,11 SERVICES,SERVICES,MYCSP LTD,467515,50,128754393
BEIS,Met Office,04/05/2022,11 SERVICES,TECHNOLOGY AND CIO,AMAZON WEB SERVICES INC.,10609,675.12,N/A
BEIS,Met Office,04/05/2022,11 SERVICES,TECHNOLOGY AND CIO,AMAZON WEB SERVICES INC.,10610,174102.45,N/A
BEIS,Met Office,04/05/2022,11 SERVICES,TECHNOLOGY AND CIO,AMAZON WEB SERVICES INC.,10610,16532.68,N/A
BEIS,Met Office,04/05/2022,11 SERVICES,TECHNOLOGY AND CIO,AMAZON WEB SERVICES INC.,10611,16920.56,N/A
BEIS,Met Office,04/05/2022,11 SERVICES,TECHNOLOGY AND CIO,AMAZON WEB SERVICES INC.,10611,832.99,N/A
BEIS,Met Office,04/05/2022,11 SERVICES,PROGRAMMES,"K F LEWIN CONSULTING, LLC",10612,69.33,-
BEIS,Met Office,04/05/2022,11 SERVICES,PROGRAMMES,"K F LEWIN CONSULTING, LLC",10612,2835.41,-
BEIS,Met Office,04/05/2022,11 SERVICES,SERVICES,METOCEAN TELEMATICS LTD,10617,327.76,-
BEIS,Met Office,04/05/2022,10 EQUIPMENT MAINTENANCE,SERVICES,RAYMETRICS S.A. (GREEK ACCOUNT),23692,2047.92,EL999641589
BEIS,Met Office,04/05/2022,13 MISCELLANEOUS,CHIEF FINANCIAL OFFICER,DEMSTAR BUSINESS SOLUTIONS LTD,23693,109.91,10156145J
BEIS,Met Office,04/05/2022,11 SERVICES,MARKETS,ECMWF,23696,5439.01,NOTVATREG
BEIS,Met Office,04/05/2022,11 SERVICES,MARKETS,ECMWF,23697,2206.54,NOTVATREG
BEIS,Met Office,04/05/2022,11 SERVICES,MARKETS,ECMWF,23698,29445.77,NOTVATREG
BEIS,Met Office,04/05/2022,11 SERVICES,MARKETS,ECMWF,23699,29445.77,NOTVATREG
BEIS,Met Office,04/05/2022,11 SERVICES,MARKETS,ECMWF,23700,540.72,NOTVATREG
BEIS,Met Office,04/05/2022,11 SERVICES,MARKETS,ECMWF,23701,29445.77,NOTVATREG
BEIS,Met Office,04/05/2022,11 SERVICES,MARKETS,ECMWF,23702,27854.1,NOTVATREG
BEIS,Met Office,04/05/2022,11 SERVICES,MARKETS,ECMWF,23703,2780.67,NOTVATREG
BEIS,Met Office,04/05/2022,11 SERVICES,MARKETS,ECMWF,23704,430.33,NOTVATREG
BEIS,Met Office,04/05/2022,11 SERVICES,MARKETS,ECMWF,23705,19303.33,NOTVATREG
BEIS,Met Office,04/05/2022,11 SERVICES,MARKETS,ECMWF,23706,27854.1,NOTVATREG
BEIS,Met Office,04/05/2022,11 SERVICES,MARKETS,ECMWF,23707,29445.77,NOTVATREG
BEIS,Met Office,04/05/2022,11 SERVICES,MARKETS,ECMWF,23708,10633.52,NOTVATREG
BEIS,Met Office,04/05/2022,11 SERVICES,MARKETS,ECMWF,23709,1100.59,NOTVATREG
BEIS,Met Office,04/05/2022,11 SERVICES,MARKETS,ECMWF,23710,29445.77,NOTVATREG
BEIS,Met Office,04/05/2022,11 SERVICES,MARKETS,ECMWF,23711,9594.19,NOTVATREG
BEIS,Met Office,04/05/2022,11 SERVICES,MARKETS,ECMWF,23712,10142.44,NOTVATREG
BEIS,Met Office,04/05/2022,11 SERVICES,MARKETS,ECMWF,23713,526.87,NOTVATREG
BEIS,Met Office,04/05/2022,11 SERVICES,MARKETS,ECMWF,23714,675.39,NOTVATREG
BEIS,Met Office,04/05/2022,11 SERVICES,MARKETS,ECMWF,23715,529.21,NOTVATREG
BEIS,Met Office,04/05/2022,11 SERVICES,MARKETS,ECMWF,23716,1914.34,NOTVATREG
BEIS,Met Office,04/05/2022,11 SERVICES,MARKETS,ECMWF,23717,29445.77,NOTVATREG
BEIS,Met Office,04/05/2022,11 SERVICES,MARKETS,ECMWF,23718,4856.11,NOTVATREG
BEIS,Met Office,04/05/2022,11 SERVICES,MARKETS,ECMWF,23719,29445.77,NOTVATREG
BEIS,Met Office,04/05/2022,11 SERVICES,MARKETS,ECMWF,23720,10816.46,NOTVATREG
BEIS,Met Office,04/05/2022,11 SERVICES,MARKETS,ECMWF,23721,1066.07,NOTVATREG
BEIS,Met Office,04/05/2022,11 SERVICES,MARKETS,ECMWF,23722,372.75,NOTVATREG
BEIS,Met Office,04/05/2022,11 SERVICES,MARKETS,ECMWF,23723,994.79,NOTVATREG
BEIS,Met Office,04/05/2022,11 SERVICES,MARKETS,ECMWF,23724,8071.41,NOTVATREG
BEIS,Met Office,04/05/2022,11 SERVICES,MARKETS,ECMWF,23725,249.41,NOTVATREG
BEIS,Met Office,04/05/2022,11 SERVICES,MARKETS,ECMWF,23726,4716.63,NOTVATREG
BEIS,Met Office,04/05/2022,11 SERVICES,MARKETS,ECMWF,23727,29445.77,NOTVATREG
BEIS,Met Office,04/05/2022,11 SERVICES,MARKETS,ECMWF,23728,29445.77,NOTVATREG
BEIS,Met Office,04/05/2022,11 SERVICES,MARKETS,ECMWF,23729,657.71,NOTVATREG
BEIS,Met Office,04/05/2022,11 SERVICES,MARKETS,ECMWF,23730,1669.11,NOTVATREG
BEIS,Met Office,04/05/2022,11 SERVICES,MARKETS,ECMWF,23731,9235.64,NOTVATREG
BEIS,Met Office,04/05/2022,11 SERVICES,MARKETS,ECMWF,23732,994.79,NOTVATREG
BEIS,Met Office,04/05/2022,11 SERVICES,MARKETS,ECMWF,23733,2353.06,NOTVATREG
BEIS,Met Office,04/05/2022,11 SERVICES,MARKETS,ECMWF,23734,29445.77,NOTVATREG
BEIS,Met Office,04/05/2022,11 SERVICES,MARKETS,ECMWF,23735,4818.37,NOTVATREG
BEIS,Met Office,04/05/2022,11 SERVICES,MARKETS,ECMWF,23736,430.63,NOTVATREG
BEIS,Met Office,04/05/2022,11 SERVICES,MARKETS,ECMWF,23737,29445.77,NOTVATREG
BEIS,Met Office,04/05/2022,11 SERVICES,MARKETS,ECMWF,23738,15199.91,NOTVATREG
BEIS,Met Office,04/05/2022,11 SERVICES,MARKETS,ECMWF,23739,2104.32,NOTVATREG
BEIS,Met Office,04/05/2022,11 SERVICES,MARKETS,ECMWF,23740,3326.14,NOTVATREG
BEIS,Met Office,04/05/2022,11 SERVICES,MARKETS,ECMWF,23741,892.26,NOTVATREG
BEIS,Met Office,04/05/2022,11 SERVICES,MARKETS,ECMWF,23742,29445.77,NOTVATREG
BEIS,Met Office,04/05/2022,11 SERVICES,MARKETS,ECMWF,23743,29864.62,NOTVATREG
BEIS,Met Office,04/05/2022,08 SOFTWARE LICENCES,TECHNOLOGY AND CIO,"IBL SOFTWARE ENGINEERING, SPOL S.R.O.",467108,7731.55,SK2020241883
BEIS,Met Office,04/05/2022,08 SOFTWARE LICENCES,TECHNOLOGY AND CIO,"IBL SOFTWARE ENGINEERING, SPOL S.R.O.",467108,29787.2,SK2020241883
BEIS,Met Office,04/05/2022,06 ACCOMMODATION,CHIEF FINANCIAL OFFICER,EDF ENERGY CUSTOMERS PLC,467543,6863.01,523041202
BEIS,Met Office,04/05/2022,11 SERVICES,TECHNOLOGY AND CIO,BAE SYSTEMS APPLIED INTELLIGENCE LIMITED,467616,13132,GB641407169
BEIS,Met Office,04/05/2022,11 SERVICES,TECHNOLOGY AND CIO,BAE SYSTEMS APPLIED INTELLIGENCE LIMITED,467617,13200,GB641407169
BEIS,Met Office,04/05/2022,11 SERVICES,TECHNOLOGY AND CIO,BAE SYSTEMS APPLIED INTELLIGENCE LIMITED,467618,17118.5,GB641407169
BEIS,Met Office,04/05/2022,11 SERVICES,MARKETS,OSBORNE CLARKE LLP,467621,400,GB138187353
BEIS,Met Office,04/05/2022,11 SERVICES,TECHNOLOGY AND CIO,BAE SYSTEMS APPLIED INTELLIGENCE LIMITED,467625,22512,GB641407169
BEIS,Met Office,04/05/2022,11 SERVICES,TECHNOLOGY AND CIO,BAE SYSTEMS APPLIED INTELLIGENCE LIMITED,467627,15840,GB641407169
BEIS,Met Office,04/05/2022,11 SERVICES,TECHNOLOGY AND CIO,BAE SYSTEMS APPLIED INTELLIGENCE LIMITED,467628,12984,GB641407169
BEIS,Met Office,04/05/2022,11 SERVICES,TECHNOLOGY AND CIO,BAE SYSTEMS APPLIED INTELLIGENCE LIMITED,467630,9168.75,GB641407169
BEIS,Met Office,04/05/2022,11 SERVICES,TECHNOLOGY AND CIO,BAE SYSTEMS APPLIED INTELLIGENCE LIMITED,467632,10800,GB641407169
BEIS,Met Office,04/05/2022,11 SERVICES,TECHNOLOGY AND CIO,BAE SYSTEMS APPLIED INTELLIGENCE LIMITED,467633,15510,GB641407169
BEIS,Met Office,04/05/2022,11 SERVICES,PROGRAMMES,FLYFORM LTD,467634,8437.5,237333808
BEIS,Met Office,04/05/2022,11 SERVICES,PROGRAMMES,REDACTED PERSONAL DATA,23682,39856.08,112591322
BEIS,Met Office,05/05/2022,11 SERVICES,OFFICE OF THE CEO,OSBORNE CLARKE LLP,467622,14000,GB138187353
BEIS,Met Office,05/05/2022,06 ACCOMMODATION,CHIEF FINANCIAL OFFICER,MAPP (PROPERTY MANAGEMENT) LTD,467626,138.88,725900735
BEIS,Met Office,05/05/2022,13 MISCELLANEOUS,CHIEF FINANCIAL OFFICER,PRINCES GATE COOL WATER LTD,467629,210.36,771895285
BEIS,Met Office,05/05/2022,06 ACCOMMODATION,CHIEF FINANCIAL OFFICER,University Of Oxford,467666,308.22,125506730
BEIS,Met Office,05/05/2022,06 ACCOMMODATION,CHIEF FINANCIAL OFFICER,TENNIE FACILITIES PROPERTY MANAGEMENT LTD,467667,165.72,982055803
BEIS,Met Office,05/05/2022,11 SERVICES,PROGRAMMES,Frazer-Nash Consultancy Ltd,467670,15000,GB564103956
BEIS,Met Office,05/05/2022,06 ACCOMMODATION,CHIEF FINANCIAL OFFICER,DARD CORPORATE ACCOUNT,467671,116.34,-
BEIS,Met Office,05/05/2022,07 EQUIPMENT,SERVICES,TARGET DESIGNS,467672,4424.4,296270825
BEIS,Met Office,05/05/2022,08 SOFTWARE LICENCES,TECHNOLOGY AND CIO,COMPUTACENTER (UK) LTD,467673,8941.96,490334648
BEIS,Met Office,05/05/2022,08 SOFTWARE LICENCES,TECHNOLOGY AND CIO,COMPUTACENTER (UK) LTD,467673,17651.16,490334648
BEIS,Met Office,05/05/2022,08 SOFTWARE LICENCES,TECHNOLOGY AND CIO,COMPUTACENTER (UK) LTD,467673,32970.99,490334648
BEIS,Met Office,05/05/2022,11 SERVICES,TECHNOLOGY AND CIO,COMPUTACENTER (UK) LTD,467673,53768.45,490334648
BEIS,Met Office,05/05/2022,INFORMATION TECHNOLOGY,TECHNOLOGY AND CIO,COMPUTACENTER (UK) LTD,467674,14014,490334648
BEIS,Met Office,05/05/2022,06 ACCOMMODATION,CHIEF FINANCIAL OFFICER,FAIR ISLE ELECTRICITY COMPANY LTD,467683,121.36,774548783
BEIS,Met Office,05/05/2022,06 ACCOMMODATION,CHIEF FINANCIAL OFFICER,CORONA ENERGY LTD,467688,719.38,577704800
BEIS,Met Office,05/05/2022,06 ACCOMMODATION,CHIEF FINANCIAL OFFICER,CORONA ENERGY LTD,467689,13135.99,577704800
BEIS,Met Office,05/05/2022,08 SOFTWARE LICENCES,TECHNOLOGY AND CIO,Ibm United Kingdom Ltd,467691,6292.52,107328000
BEIS,Met Office,05/05/2022,11 SERVICES,CHIEF FINANCIAL OFFICER,ALLSTAR BUSINESS SOLUTIONS LTD,467692,3222.47,747880191
BEIS,Met Office,05/05/2022,08 SOFTWARE LICENCES,TECHNOLOGY AND CIO,GOOGLE IRELAND LTD,467693,43.18,6388047V
BEIS,Met Office,05/05/2022,08 SOFTWARE LICENCES,TECHNOLOGY AND CIO,Ibm United Kingdom Ltd,467694,9957.7,107328000
BEIS,Met Office,05/05/2022,13 MISCELLANEOUS,CHIEF FINANCIAL OFFICER,CARDIFF EXECUTIVE CENTRE LTD,467699,484.7,864497378
BEIS,Met Office,05/05/2022,10 EQUIPMENT MAINTENANCE,TECHNOLOGY AND CIO,ORACLE CORPORATION UK LTD,467700,198062.86,391313073
BEIS,Met Office,05/05/2022,06 ACCOMMODATION,CHIEF FINANCIAL OFFICER,SHETLAND GRASSCUTTING,467701,1980.77,978367258
BEIS,Met Office,05/05/2022,06 ACCOMMODATION,CHIEF FINANCIAL OFFICER,SHETLAND GRASSCUTTING,467702,832.76,978367258
BEIS,Met Office,05/05/2022,06 ACCOMMODATION,CHIEF FINANCIAL OFFICER,OUR LADY OF BETHLEHEM ABBEY,467703,500,-
BEIS,Met Office,05/05/2022,06 ACCOMMODATION,CHIEF FINANCIAL OFFICER,CARDIFF EXECUTIVE CENTRE LTD,467704,2470,864497378
BEIS,Met Office,05/05/2022,06 ACCOMMODATION,CHIEF FINANCIAL OFFICER,Sse Generation Ltd,467707,192,553769603
BEIS,Met Office,05/05/2022,06 ACCOMMODATION,CHIEF FINANCIAL OFFICER,Scottish Natural Heritage,467709,200,553740540
BEIS,Met Office,05/05/2022,06 ACCOMMODATION,CHIEF FINANCIAL OFFICER,PAUL BAIRD,467710,1846.37,251954452
BEIS,Met Office,05/05/2022,06 ACCOMMODATION,CHIEF FINANCIAL OFFICER,Southern Education & Library Board,467711,50,-
BEIS,Met Office,05/05/2022,06 ACCOMMODATION,CHIEF FINANCIAL OFFICER,MAPP (PROPERTY MANAGEMENT) LTD,467714,4499.3,725900735
BEIS,Met Office,05/05/2022,06 ACCOMMODATION,CHIEF FINANCIAL OFFICER,OUR LADY OF BETHLEHEM ABBEY,467715,112,-
BEIS,Met Office,05/05/2022,03 STAFF COSTS T&S,SERVICES,CHARLIE'S TRAVEL LTD,467755,624.89,783848277
BEIS,Met Office,05/05/2022,06 ACCOMMODATION,CHIEF FINANCIAL OFFICER,REDACTED PERSONAL DATA,467705,200,-
BEIS,Met Office,05/05/2022,06 ACCOMMODATION,CHIEF FINANCIAL OFFICER,REDACTED PERSONAL DATA,467706,696.65,-
BEIS,Met Office,06/05/2022,03 STAFF COSTS T&S,SERVICES,FALKLAND ISLAND COMPANY LTD,467293,150,N/A
BEIS,Met Office,06/05/2022,03 STAFF COSTS T&S,SERVICES,FALKLAND ISLAND COMPANY LTD,467295,708,N/A
BEIS,Met Office,06/05/2022,08 SOFTWARE LICENCES,PEOPLE,CATALYST IT,467668,14780.83,978169262
BEIS,Met Office,06/05/2022,11 SERVICES,PEOPLE,EDENRED - CHILDCARE VOUCHERS,467698,11369,649 503 520
BEIS,Met Office,06/05/2022,11 SERVICES,SERVICES,SOFTWIRE TECHNOLOGY LIMITED,467737,4200,752 1253 57
BEIS,Met Office,06/05/2022,11 SERVICES,MARKETS,ULTRA ELECTRONICS LTD NUCLEAR CONTROL SYSTEMS,467752,4926.81,123340754
BEIS,Met Office,06/05/2022,11 SERVICES,TECHNOLOGY AND CIO,WIREFAST LTD,467753,1551.08,749536001
BEIS,Met Office,06/05/2022,11 SERVICES,TECHNOLOGY AND CIO,WIREFAST LTD,467756,24.19,749536001
BEIS,Met Office,06/05/2022,11 SERVICES,TECHNOLOGY AND CIO,WIREFAST LTD,467757,878.5,749536001
BEIS,Met Office,06/05/2022,11 SERVICES,OFFICE OF THE CEO,Cipd,467759,725,756 202 737.
BEIS,Met Office,06/05/2022,13 MISCELLANEOUS,PEOPLE,BROADBEAN TECHNOLOGY LTD,467768,7312.65,GB184088778
BEIS,Met Office,06/05/2022,13 MISCELLANEOUS,PEOPLE,BROADBEAN TECHNOLOGY LTD,467769,594,GB184088778
BEIS,Met Office,06/05/2022,11 SERVICES,MARKETS,ADOPSTAR,467798,1250,115036848
BEIS,Met Office,06/05/2022,11 SERVICES,CHIEF FINANCIAL OFFICER,APPLE CENTRAL TAXIS,467801,898.5,449238720
BEIS,Met Office,06/05/2022,11 SERVICES,PROGRAMMES,FLYFORM LTD,467814,900,237333808
BEIS,Met Office,06/05/2022,11 SERVICES,PROGRAMMES,Esri (Uk) Ltd,467817,5103,787430791
BEIS,Met Office,06/05/2022,11 SERVICES,PROGRAMMES,ROWE IT LTD,467821,51227.5,924964394
BEIS,Met Office,06/05/2022,06 ACCOMMODATION,CHIEF FINANCIAL OFFICER,ABOVE THE REST COMMERCIAL CLEANING LTD,467824,38,166969348
BEIS,Met Office,06/05/2022,13 MISCELLANEOUS,PEOPLE,EDENRED I&M (IRS VOUCHERS),467826,46002,649 503 520
BEIS,Met Office,06/05/2022,11 SERVICES,PROGRAMMES,ROWE IT LTD,467827,65462.5,924964394
BEIS,Met Office,06/05/2022,06 ACCOMMODATION,CHIEF FINANCIAL OFFICER,PERTH AND KINROSS COUNCIL,467830,4183.2,-
BEIS,Met Office,06/05/2022,PLANT AND EQUIPMENT,CHIEF FINANCIAL OFFICER,Capita Property & Infrastructure Ltd,467832,24365,618184140
BEIS,Met Office,06/05/2022,08 SOFTWARE LICENCES,TECHNOLOGY AND CIO,BOXXE,467833,6442.96,734245248
BEIS,Met Office,06/05/2022,11 SERVICES,MARKETS,University Of Leeds,467834,3293.71,613451470
BEIS,Met Office,09/05/2022,06 ACCOMMODATION,MARKETS,Trinity House,465787,600,243120414
BEIS,Met Office,09/05/2022,06 ACCOMMODATION,MARKETS,Trinity House,465788,480,243120414
BEIS,Met Office,09/05/2022,11 SERVICES,MARKETS,CACI LTD,467161,133216.3,380609841
BEIS,Met Office,09/05/2022,13 MISCELLANEOUS,SCIENCE,Imperial College,467506,834,649926678
BEIS,Met Office,09/05/2022,11 SERVICES,PEOPLE,RIVER TRAINING AND HR,467665,800,-
BEIS,Met Office,09/05/2022,11 SERVICES,SCIENCE,LEARNING POOL LIMITED,467669,6000,882389379
BEIS,Met Office,09/05/2022,11 SERVICES,CHIEF FINANCIAL OFFICER,TELEFONICA O2 UK LIMITED,467685,50.14,778603785
BEIS,Met Office,09/05/2022,10 EQUIPMENT MAINTENANCE,SERVICES,Campbell Scientific Ltd,467687,120,428453933
BEIS,Met Office,09/05/2022,05 CONSULTANTS,CHIEF FINANCIAL OFFICER,WT CONSULTANCY (SW) LTD,467696,6300,223 4662 25
BEIS,Met Office,09/05/2022,08 SOFTWARE LICENCES,TECHNOLOGY AND CIO,PRESENTATION CARTOGRAPHY LTD,467712,8032,-
BEIS,Met Office,09/05/2022,08 SOFTWARE LICENCES,TECHNOLOGY AND CIO,PRESENTATION CARTOGRAPHY LTD,467712,1937,-
BEIS,Met Office,09/05/2022,08 SOFTWARE LICENCES,TECHNOLOGY AND CIO,PRESENTATION CARTOGRAPHY LTD,467713,6819,-
BEIS,Met Office,09/05/2022,08 SOFTWARE LICENCES,TECHNOLOGY AND CIO,PRESENTATION CARTOGRAPHY LTD,467713,39254,-
BEIS,Met Office,09/05/2022,08 SOFTWARE LICENCES,TECHNOLOGY AND CIO,PRESENTATION CARTOGRAPHY LTD,467713,7231,-
BEIS,Met Office,09/05/2022,INFORMATION TECHNOLOGY,SERVICES,INMARSAT SOLUTIONS (CANADA) INC,467731,1573.6,766144223
BEIS,Met Office,09/05/2022,INFORMATION TECHNOLOGY,SERVICES,INMARSAT SOLUTIONS (CANADA) INC,467732,71.82,766144223
BEIS,Met Office,09/05/2022,INFORMATION TECHNOLOGY,SERVICES,INMARSAT SOLUTIONS (CANADA) INC,467733,51.87,766144223
BEIS,Met Office,09/05/2022,INFORMATION TECHNOLOGY,SERVICES,INMARSAT SOLUTIONS (CANADA) INC,467734,51.87,766144223
BEIS,Met Office,09/05/2022,13 MISCELLANEOUS,SERVICES,Royal Meteorological Society,467736,176,-
BEIS,Met Office,09/05/2022,13 MISCELLANEOUS,CHIEF FINANCIAL OFFICER,NORSCOTT VENDING SERVICES LTD,467750,85,751402071
BEIS,Met Office,09/05/2022,13 MISCELLANEOUS,CHIEF FINANCIAL OFFICER,DWYFOR COFFEE COMPANY LTD,467754,21.03,559811116
BEIS,Met Office,09/05/2022,06 ACCOMMODATION,CHIEF FINANCIAL OFFICER,TOP RANK CLEANING SERVICES LTD,467758,914,-
BEIS,Met Office,09/05/2022,11 SERVICES,CHIEF FINANCIAL OFFICER,EDSON TIGER LTD,467760,4000,166910983
BEIS,Met Office,09/05/2022,13 MISCELLANEOUS,SCIENCE,Imperial College,467763,334,649926678
BEIS,Met Office,09/05/2022,13 MISCELLANEOUS,SCIENCE,Imperial College,467764,-834,649926678
BEIS,Met Office,09/05/2022,11 SERVICES,CHIEF FINANCIAL OFFICER,MITIE SECURITY LTD,467765,1408.17,416706654
BEIS,Met Office,09/05/2022,11 SERVICES,CHIEF FINANCIAL OFFICER,MITIE SECURITY LTD,467766,66,416706654
BEIS,Met Office,09/05/2022,11 SERVICES,CHIEF FINANCIAL OFFICER,MITIE SECURITY LTD,467767,891,416706654
BEIS,Met Office,09/05/2022,03 STAFF COSTS T&S,CHIEF FINANCIAL OFFICER,ENTERPRISE RENT A CAR UK LTD,467770,1612.83,215557314
BEIS,Met Office,09/05/2022,06 ACCOMMODATION,CHIEF FINANCIAL OFFICER,CALOR GAS LIMITED,467809,19.61,207610984
BEIS,Met Office,09/05/2022,06 ACCOMMODATION,CHIEF FINANCIAL OFFICER,CALOR GAS LIMITED,467810,34.25,207610984
BEIS,Met Office,09/05/2022,06 ACCOMMODATION,CHIEF FINANCIAL OFFICER,CALOR GAS LIMITED,467811,49.18,207610984
BEIS,Met Office,09/05/2022,11 SERVICES,SERVICES,FLYFORM LTD,467813,2985,237333808
BEIS,Met Office,09/05/2022,06 ACCOMMODATION,CHIEF FINANCIAL OFFICER,CALOR GAS LIMITED,467816,34.25,207610984
BEIS,Met Office,09/05/2022,06 ACCOMMODATION,CHIEF FINANCIAL OFFICER,CALOR GAS LIMITED,467818,34.25,207610984
BEIS,Met Office,09/05/2022,06 ACCOMMODATION,CHIEF FINANCIAL OFFICER,CALOR GAS LIMITED,467819,34.25,207610984
BEIS,Met Office,09/05/2022,03 STAFF COSTS T&S,SCIENCE,HITACHI CAPITAL VEHICLE SOLUTIONS,467822,745.46,GB 823 8248 22
BEIS,Met Office,09/05/2022,03 STAFF COSTS T&S,SCIENCE,HITACHI CAPITAL VEHICLE SOLUTIONS,467822,2641.91,GB 823 8248 22
BEIS,Met Office,09/05/2022,03 STAFF COSTS T&S,SERVICES,HITACHI CAPITAL VEHICLE SOLUTIONS,467822,3727.3,GB 823 8248 22
BEIS,Met Office,09/05/2022,03 STAFF COSTS T&S,SERVICES,HITACHI CAPITAL VEHICLE SOLUTIONS,467822,13209.55,GB 823 8248 22
BEIS,Met Office,09/05/2022,03 STAFF COSTS T&S,SERVICES,HITACHI CAPITAL VEHICLE SOLUTIONS,467822,1490.92,GB 823 8248 22
BEIS,Met Office,09/05/2022,03 STAFF COSTS T&S,SERVICES,HITACHI CAPITAL VEHICLE SOLUTIONS,467822,5283.82,GB 823 8248 22
BEIS,Met Office,09/05/2022,06 ACCOMMODATION,CHIEF FINANCIAL OFFICER,CALOR GAS LIMITED,467823,34.25,207610984
BEIS,Met Office,09/05/2022,04 CONTRACTORS,PEOPLE,MATRIX SCM LIMITED,467825,315533.29,249 5734 68
BEIS,Met Office,09/05/2022,11 SERVICES,SERVICES,ADAM PHONES LTD,467829,176.7,538877093
BEIS,Met Office,09/05/2022,11 SERVICES,PROGRAMMES,ROWE IT LTD,467836,5938.66,924964394
BEIS,Met Office,09/05/2022,11 SERVICES,PROGRAMMES,ROWE IT LTD,467836,12867.07,924964394
BEIS,Met Office,09/05/2022,11 SERVICES,PROGRAMMES,ROWE IT LTD,467836,1319.7,924964394
BEIS,Met Office,09/05/2022,11 SERVICES,PROGRAMMES,ROWE IT LTD,467836,12867.07,924964394
BEIS,Met Office,09/05/2022,13 MISCELLANEOUS,CHIEF FINANCIAL OFFICER,University Of Reading,467838,2.52,200012659
BEIS,Met Office,09/05/2022,06 ACCOMMODATION,CHIEF FINANCIAL OFFICER,EDF ENERGY CUSTOMERS PLC,467841,171894.83,523041202
BEIS,Met Office,09/05/2022,06 ACCOMMODATION,CHIEF FINANCIAL OFFICER,EDF ENERGY CUSTOMERS PLC,467842,153819.1,523041202
BEIS,Met Office,09/05/2022,06 ACCOMMODATION,CHIEF FINANCIAL OFFICER,EDF ENERGY CUSTOMERS PLC,467843,438901.49,523041202
BEIS,Met Office,09/05/2022,11 SERVICES,PEOPLE,SOURCE COACHING CONSULTANCY,467844,1340,170422048
BEIS,Met Office,09/05/2022,11 SERVICES,TECHNOLOGY AND CIO,AKAMAI TECHNOLOGIES LTD,467882,4921.28,745091237
BEIS,Met Office,09/05/2022,11 SERVICES,TECHNOLOGY AND CIO,AKAMAI TECHNOLOGIES LTD,467882,25836.75,745091237
BEIS,Met Office,09/05/2022,11 SERVICES,MARKETS,SPOKE (INTERACTIVE) LTD,467884,700,840156451
BEIS,Met Office,09/05/2022,06 ACCOMMODATION,CHIEF FINANCIAL OFFICER,HAFREN DYFRDWY CYFYNGEDIG,467899,375,486985565
BEIS,Met Office,09/05/2022,08 SOFTWARE LICENCES,TECHNOLOGY AND CIO,COMPUTACENTER (UK) LTD,467900,1196.94,490334648
BEIS,Met Office,09/05/2022,08 SOFTWARE LICENCES,TECHNOLOGY AND CIO,COMPUTACENTER (UK) LTD,467900,20347.98,490334648
BEIS,Met Office,09/05/2022,11 SERVICES,PEOPLE,THE STRENGTHS PEOPLE LTD,467904,2000,206868488
BEIS,Met Office,09/05/2022,11 SERVICES,PEOPLE,THE STRENGTHS PEOPLE LTD,467904,1800,206868488
BEIS,Met Office,09/05/2022,11 SERVICES,PEOPLE,THE STRENGTHS PEOPLE LTD,467904,149.4,206868488
BEIS,Met Office,09/05/2022,11 SERVICES,PEOPLE,REDACTED PERSONAL DATA,466317,204,143043312
BEIS,Met Office,09/05/2022,11 SERVICES,PEOPLE,REDACTED PERSONAL DATA,466916,555,143043312
BEIS,Met Office,09/05/2022,11 SERVICES,PEOPLE,REDACTED PERSONAL DATA,466917,336,143043312
BEIS,Met Office,09/05/2022,11 SERVICES,PEOPLE,REDACTED PERSONAL DATA,467575,2949.48,143043312
BEIS,Met Office,09/05/2022,11 SERVICES,SERVICES,REDACTED PERSONAL DATA,467697,130.24,-
BEIS,Met Office,09/05/2022,11 SERVICES,PEOPLE,REDACTED PERSONAL DATA,467812,1377,143043312
BEIS,Met Office,10/05/2022,03 STAFF COSTS T&S,CHIEF FINANCIAL OFFICER,RAINBOW CITY TAXIS,464429,15,724295039
BEIS,Met Office,10/05/2022,08 SOFTWARE LICENCES,SERVICES,COGNIZANT WORLDWIDE LIMITED,466175,9978.5,123382928
BEIS,Met Office,10/05/2022,03 STAFF COSTS T&S,CHIEF FINANCIAL OFFICER,RAINBOW CITY TAXIS,466492,14.87,724295039
BEIS,Met Office,10/05/2022,11 SERVICES,PROGRAMMES,Hr Wallingford Ltd,466868,66477,570039752
BEIS,Met Office,10/05/2022,11 SERVICES,PROGRAMMES,Hr Wallingford Ltd,467006,-66477,570039752
BEIS,Met Office,10/05/2022,11 SERVICES,PROGRAMMES,HOGAN LOVELLS INTERNATIONAL LLP,467269,418539.69,GB123371543
BEIS,Met Office,10/05/2022,11 SERVICES,PROGRAMMES,HOGAN LOVELLS INTERNATIONAL LLP,467419,12870,GB123371543
BEIS,Met Office,10/05/2022,03 STAFF COSTS T&S,CHIEF FINANCIAL OFFICER,RAINBOW CITY TAXIS,467460,21.24,724295039
BEIS,Met Office,10/05/2022,11 SERVICES,PROGRAMMES,Hr Wallingford Ltd,467544,5000,570039752
BEIS,Met Office,10/05/2022,11 SERVICES,PROGRAMMES,Hr Wallingford Ltd,467545,60477,570039752
BEIS,Met Office,10/05/2022,11 SERVICES,PROGRAMMES,IBM UK FINANCIAL SERVICES LTD,467690,82649.91,1073280014
BEIS,Met Office,10/05/2022,11 SERVICES,PEOPLE,MOMENTUM INCORPORATED,467730,6660,598958541
BEIS,Met Office,10/05/2022,13 MISCELLANEOUS,CHIEF FINANCIAL OFFICER,EAST ANGLIAN WATER COOLER CO,467735,13.6,676668178
BEIS,Met Office,10/05/2022,11 SERVICES,TECHNOLOGY AND CIO,SSE CONTRACTING LTD,467746,10912.87,382894546
BEIS,Met Office,10/05/2022,11 SERVICES,CHIEF FINANCIAL OFFICER,LICENCE BUREAU LTD,467749,407.25,820219467
BEIS,Met Office,10/05/2022,11 SERVICES,TECHNOLOGY AND CIO,BAE SYSTEMS APPLIED INTELLIGENCE LIMITED,467799,7507.5,GB641407169
BEIS,Met Office,10/05/2022,11 SERVICES,TECHNOLOGY AND CIO,BAE SYSTEMS APPLIED INTELLIGENCE LIMITED,467800,22512,GB641407169
BEIS,Met Office,10/05/2022,11 SERVICES,TECHNOLOGY AND CIO,BAE SYSTEMS APPLIED INTELLIGENCE LIMITED,467802,4221,GB641407169
BEIS,Met Office,10/05/2022,11 SERVICES,TECHNOLOGY AND CIO,BAE SYSTEMS APPLIED INTELLIGENCE LIMITED,467803,17353,GB641407169
BEIS,Met Office,10/05/2022,11 SERVICES,TECHNOLOGY AND CIO,BAE SYSTEMS APPLIED INTELLIGENCE LIMITED,467805,27905.5,GB641407169
BEIS,Met Office,10/05/2022,11 SERVICES,TECHNOLOGY AND CIO,BAE SYSTEMS APPLIED INTELLIGENCE LIMITED,467806,11880,GB641407169
BEIS,Met Office,10/05/2022,11 SERVICES,TECHNOLOGY AND CIO,BAE SYSTEMS APPLIED INTELLIGENCE LIMITED,467807,9240,GB641407169
BEIS,Met Office,10/05/2022,11 SERVICES,PROGRAMMES,FLYFORM LTD,467815,11940,237333808
BEIS,Met Office,10/05/2022,11 SERVICES,PROGRAMMES,FLYFORM LTD,467815,23929.75,237333808
BEIS,Met Office,10/05/2022,11 SERVICES,PROGRAMMES,FLYFORM LTD,467815,15750,237333808
BEIS,Met Office,10/05/2022,11 SERVICES,PROGRAMMES,ROWE IT LTD,467828,11250,924964394
BEIS,Met Office,10/05/2022,11 SERVICES,PROGRAMMES,ROWE IT LTD,467835,59656.25,924964394
BEIS,Met Office,10/05/2022,11 SERVICES,PROGRAMMES,ROWE IT LTD,467837,65662.5,924964394
BEIS,Met Office,10/05/2022,11 SERVICES,MARKETS,PRESENTATION CARTOGRAPHY LTD,467881,4865,-
BEIS,Met Office,10/05/2022,05 CONSULTANTS,OFFICE OF THE CEO,THE LEGAL DIRECTOR,467901,900,899 338941
BEIS,Met Office,10/05/2022,06 ACCOMMODATION,CHIEF FINANCIAL OFFICER,RIVER RIDGE,467926,145.95,176286083
BEIS,Met Office,10/05/2022,03 STAFF COSTS T&S,CHIEF FINANCIAL OFFICER,ENTERPRISE RENT A CAR UK LTD,467927,2311.64,215557314
BEIS,Met Office,10/05/2022,11 SERVICES,MARKETS,ACCELERATION EMARKETING,467929,2557.73,848940776
BEIS,Met Office,10/05/2022,13 MISCELLANEOUS,CHIEF FINANCIAL OFFICER,ANTRIM HILLS SPRING WATER CO LTD,467930,27,517173455
BEIS,Met Office,10/05/2022,12 INTERNATIONAL,MARKETS,FOXSTONES TRAINING AND LEARNING,467931,2950,-
BEIS,Met Office,10/05/2022,11 SERVICES,MARKETS,CACI LTD,467933,25362.59,380609841
BEIS,Met Office,10/05/2022,11 SERVICES,MARKETS,CACI LTD,467934,54789.61,380609841
BEIS,Met Office,10/05/2022,13 MISCELLANEOUS,CHIEF FINANCIAL OFFICER,CANON UK LTD,467936,26.34,523797128
BEIS,Met Office,10/05/2022,03 STAFF COSTS T&S,CHIEF FINANCIAL OFFICER,ENTERPRISE RENT A CAR UK LTD,467994,91.75,215557314
BEIS,Met Office,10/05/2022,11 SERVICES,PROGRAMMES,MARRONS PLANNING (SHAKESPEARE MARTINEAU LLP),467997,4064.6,GB1103031
BEIS,Met Office,10/05/2022,11 SERVICES,PROGRAMMES,IBM UK FINANCIAL SERVICES LTD,467999,-82649.91,1073280014
BEIS,Met Office,11/05/2022,STOCK,SERVICES,VAISALA LTD,23680,0,336100011
BEIS,Met Office,11/05/2022,TRADE CREDITORS,SERVICES,VAISALA LTD,23680,43252.15,336100011
BEIS,Met Office,11/05/2022,STOCK,SERVICES,VAISALA LTD,23683,0,336100011
BEIS,Met Office,11/05/2022,TRADE CREDITORS,SERVICES,VAISALA LTD,23683,78640.28,336100011
BEIS,Met Office,11/05/2022,STOCK,SERVICES,VAISALA LTD,23684,0,336100011
BEIS,Met Office,11/05/2022,TRADE CREDITORS,SERVICES,VAISALA LTD,23684,35388.13,336100011
BEIS,Met Office,11/05/2022,11 SERVICES,CHIEF FINANCIAL OFFICER,DBS FINANCE RECEIPTS CTS,23810,164.22,888805068
BEIS,Met Office,11/05/2022,11 SERVICES,MARKETS,CONSULTEC,23821,1139.14,400005915
BEIS,Met Office,11/05/2022,11 SERVICES,MARKETS,CONSULTEC,23821,3450.64,400005915
BEIS,Met Office,11/05/2022,11 SERVICES,MARKETS,CONSULTEC,23821,4972.26,400005915
BEIS,Met Office,11/05/2022,11 SERVICES,CHIEF FINANCIAL OFFICER,EIR,23823,51.31,4736919B
BEIS,Met Office,11/05/2022,11 SERVICES,TECHNOLOGY AND CIO,"IBL SOFTWARE ENGINEERING, SPOL S.R.O.",467135,9137.8,SK2020241883
BEIS,Met Office,11/05/2022,11 SERVICES,PROGRAMMES,HOGAN LOVELLS INTERNATIONAL LLP,467274,116187.26,GB123371543
BEIS,Met Office,11/05/2022,10 EQUIPMENT MAINTENANCE,SERVICES,Campbell Scientific Ltd,467686,601.2,428453933
BEIS,Met Office,11/05/2022,10 EQUIPMENT MAINTENANCE,SERVICES,Campbell Scientific Ltd,467686,601.2,428453933
BEIS,Met Office,11/05/2022,10 EQUIPMENT MAINTENANCE,SERVICES,Campbell Scientific Ltd,467686,601.2,428453933
BEIS,Met Office,11/05/2022,10 EQUIPMENT MAINTENANCE,SERVICES,Campbell Scientific Ltd,467686,601.2,428453933
BEIS,Met Office,11/05/2022,10 EQUIPMENT MAINTENANCE,SERVICES,Campbell Scientific Ltd,467686,601.2,428453933
BEIS,Met Office,11/05/2022,10 EQUIPMENT MAINTENANCE,SERVICES,Campbell Scientific Ltd,467686,601.2,428453933
BEIS,Met Office,11/05/2022,10 EQUIPMENT MAINTENANCE,SERVICES,Campbell Scientific Ltd,467686,601.2,428453933
BEIS,Met Office,11/05/2022,11 SERVICES,SERVICES,Campbell Scientific Ltd,467686,96,428453933
BEIS,Met Office,11/05/2022,08 SOFTWARE LICENCES,TECHNOLOGY AND CIO,DMARC ADVISOR B.V.,467820,5250,NL852616879B01
BEIS,Met Office,11/05/2022,11 SERVICES,PROGRAMMES,UK CENTRE FOR ECOLOGY & HYDROLOGY (UKCEH),467883,152549.14,336940192
BEIS,Met Office,11/05/2022,11 SERVICES,PROGRAMMES,BAE SYSTEMS APPLIED INTELLIGENCE LIMITED,467885,22512,GB641407169
BEIS,Met Office,11/05/2022,11 SERVICES,PROGRAMMES,BAE SYSTEMS APPLIED INTELLIGENCE LIMITED,467886,15840,GB641407169
BEIS,Met Office,11/05/2022,11 SERVICES,PROGRAMMES,BAE SYSTEMS APPLIED INTELLIGENCE LIMITED,467887,23042.52,GB641407169
BEIS,Met Office,11/05/2022,11 SERVICES,PROGRAMMES,BAE SYSTEMS APPLIED INTELLIGENCE LIMITED,467888,17822,GB641407169
BEIS,Met Office,11/05/2022,11 SERVICES,PROGRAMMES,BAE SYSTEMS APPLIED INTELLIGENCE LIMITED,467890,18760,GB641407169
BEIS,Met Office,11/05/2022,11 SERVICES,PROGRAMMES,BAE SYSTEMS APPLIED INTELLIGENCE LIMITED,467891,10800,GB641407169
BEIS,Met Office,11/05/2022,11 SERVICES,PROGRAMMES,BAE SYSTEMS APPLIED INTELLIGENCE LIMITED,467892,26167.5,GB641407169
BEIS,Met Office,11/05/2022,11 SERVICES,PROGRAMMES,BAE SYSTEMS APPLIED INTELLIGENCE LIMITED,467894,4060.92,GB641407169
BEIS,Met Office,11/05/2022,11 SERVICES,PROGRAMMES,BAE SYSTEMS APPLIED INTELLIGENCE LIMITED,467894,11296,GB641407169
BEIS,Met Office,11/05/2022,11 SERVICES,PROGRAMMES,BAE SYSTEMS APPLIED INTELLIGENCE LIMITED,467894,15796.04,GB641407169
BEIS,Met Office,11/05/2022,11 SERVICES,PROGRAMMES,BAE SYSTEMS APPLIED INTELLIGENCE LIMITED,467895,27912,GB641407169
BEIS,Met Office,11/05/2022,11 SERVICES,PROGRAMMES,BAE SYSTEMS APPLIED INTELLIGENCE LIMITED,467896,17470.25,GB641407169
BEIS,Met Office,11/05/2022,13 MISCELLANEOUS,SCIENCE,University Of Reading,467897,333.33,200012659
BEIS,Met Office,11/05/2022,CYCLESCHEME,OTHER,EDENRED UK (CYCLESCHEME),467902,4067.69,649 503 520
BEIS,Met Office,11/05/2022,11 SERVICES,PEOPLE,HEALTH ASSURED LIMITED,467905,1120,927 5242 17
BEIS,Met Office,11/05/2022,11 SERVICES,PROGRAMMES,FLYFORM LTD,467920,6375,237333808
BEIS,Met Office,11/05/2022,11 SERVICES,PROGRAMMES,FLYFORM LTD,467921,8437.5,237333808
BEIS,Met Office,11/05/2022,11 SERVICES,CHIEF FINANCIAL OFFICER,GB GROUP PLC,467924,616.34,539716218
BEIS,Met Office,11/05/2022,07 EQUIPMENT,SERVICES,INDUSTRIAL RUBBER LTD,467935,25,711918640
BEIS,Met Office,11/05/2022,07 EQUIPMENT,SERVICES,INDUSTRIAL RUBBER LTD,467935,1940,711918640
BEIS,Met Office,11/05/2022,11 SERVICES,MARKETS,WORLDPAY (UK) LTD,467937,283.94,991280207
BEIS,Met Office,11/05/2022,11 SERVICES,MARKETS,WORLDPAY (UK) LTD,467938,44.04,991280207
BEIS,Met Office,11/05/2022,13 MISCELLANEOUS,PEOPLE,CALM WATERS COUNSELLING,467984,160,-
BEIS,Met Office,11/05/2022,06 ACCOMMODATION,CHIEF FINANCIAL OFFICER,MOUNT CHARLES GROUP LTD,467987,576.36,517116274
BEIS,Met Office,11/05/2022,06 ACCOMMODATION,CHIEF FINANCIAL OFFICER,Northern Ireland Water,467990,5200,898746537
BEIS,Met Office,11/05/2022,06 ACCOMMODATION,CHIEF FINANCIAL OFFICER,LAMBERT SMITH HAMPTON GROUP LTD CLIENT A/C,467991,111,NOVAT
BEIS,Met Office,11/05/2022,11 SERVICES,PROGRAMMES,Ibm United Kingdom Ltd,467998,82649.91,107328000
BEIS,Met Office,11/05/2022,07 EQUIPMENT,TECHNOLOGY AND CIO,COMPUTACENTER (UK) LTD,468031,4600,490334648
BEIS,Met Office,11/05/2022,07 EQUIPMENT,SERVICES,ACCELERATED WEATHERING LABORATORY LTD,468054,2100,GB 872043534
BEIS,Met Office,12/05/2022,11 SERVICES,SERVICES,ARNOLD CLARK FINANCE LIMITED,464948,1483.32,GB334331879
BEIS,Met Office,12/05/2022,11 SERVICES,TECHNOLOGY AND CIO,DELOITTE LLP LIMITED,465048,43149.94,GB809707706
BEIS,Met Office,12/05/2022,11 SERVICES,TECHNOLOGY AND CIO,BAE SYSTEMS APPLIED INTELLIGENCE LIMITED,467880,7574,GB641407169
BEIS,Met Office,12/05/2022,11 SERVICES,TECHNOLOGY AND CIO,BAE SYSTEMS APPLIED INTELLIGENCE LIMITED,467922,1623,GB641407169
BEIS,Met Office,12/05/2022,SOFTWARE LICENCES,CHIEF FINANCIAL OFFICER,ADVANCED BUSINESS SOLUTIONS LTD,467923,5100,927547983
BEIS,Met Office,12/05/2022,11 SERVICES,MARKETS,LHR BUSINESS SUPPORT CENTRE LTD,467925,133.3,927365404
BEIS,Met Office,12/05/2022,11 SERVICES,CHIEF FINANCIAL OFFICER,TELEFONICA O2 UK LIMITED,467932,7625.22,778603785
BEIS,Met Office,12/05/2022,11 SERVICES,CHIEF FINANCIAL OFFICER,BT plc,467979,10198.74,245719348
BEIS,Met Office,12/05/2022,11 SERVICES,SERVICES,CLOUDREACH EUROPE LIMITED,467988,7300,978187168
BEIS,Met Office,12/05/2022,11 SERVICES,TECHNOLOGY AND CIO,CLOUDREACH EUROPE LIMITED,467992,5150,978187168
BEIS,Met Office,12/05/2022,11 SERVICES,SERVICES,ROCKSURE SYSTEMS LTD T/A PEOPLESAFE,468027,782,859951462
BEIS,Met Office,12/05/2022,08 SOFTWARE LICENCES,TECHNOLOGY AND CIO,ORACLE CORPORATION UK LTD,468030,11049.43,391313073
BEIS,Met Office,12/05/2022,06 ACCOMMODATION,CHIEF FINANCIAL OFFICER,SHETLAND CLEANING SERVICES,468032,769.57,430028404
BEIS,Met Office,12/05/2022,06 ACCOMMODATION,CHIEF FINANCIAL OFFICER,SAFESTORE LTD,468034,2815.28,722887607
BEIS,Met Office,12/05/2022,11 SERVICES,PROGRAMMES,GAMMA TELECOM LTD,468036,3000,823820344
BEIS,Met Office,12/05/2022,11 SERVICES,PROGRAMMES,GAMMA TELECOM LTD,468036,1066.39,823820344
BEIS,Met Office,12/05/2022,06 ACCOMMODATION,CHIEF FINANCIAL OFFICER,South West Water Ltd,468038,644.8,236873674
BEIS,Met Office,12/05/2022,11 SERVICES,TECHNOLOGY AND CIO,BAE SYSTEMS APPLIED INTELLIGENCE LIMITED,468041,541,GB641407169
BEIS,Met Office,12/05/2022,11 SERVICES,CHIEF FINANCIAL OFFICER,GIBRALTAR NYNEX COMMUNICATIONS LTD,468045,660,NOVAT
BEIS,Met Office,12/05/2022,11 SERVICES,PEOPLE,NIMMER,468082,3500,-
BEIS,Met Office,12/05/2022,11 SERVICES,SERVICES,ROCKSURE SYSTEMS LTD T/A PEOPLESAFE,468101,-782,859951462
BEIS,Met Office,12/05/2022,11 SERVICES,SERVICES,SKYGUARD LTD T/A PEOPLESAFE,468102,782,285808854
BEIS,Met Office,13/05/2022,FIXTURE & FITTINGS,CHIEF FINANCIAL OFFICER,POSTURITE (UK) LTD,459458,14.95,583565114
BEIS,Met Office,13/05/2022,FIXTURE & FITTINGS,CHIEF FINANCIAL OFFICER,POSTURITE (UK) LTD,459458,9.95,583565114
BEIS,Met Office,13/05/2022,FIXTURE & FITTINGS,CHIEF FINANCIAL OFFICER,POSTURITE (UK) LTD,459458,188.59,583565114
BEIS,Met Office,13/05/2022,FIXTURE & FITTINGS,CHIEF FINANCIAL OFFICER,POSTURITE (UK) LTD,460030,60,583565114
BEIS,Met Office,13/05/2022,FIXTURE & FITTINGS,CHIEF FINANCIAL OFFICER,POSTURITE (UK) LTD,460030,14,583565114
BEIS,Met Office,13/05/2022,FIXTURE & FITTINGS,CHIEF FINANCIAL OFFICER,POSTURITE (UK) LTD,460030,98,583565114
BEIS,Met Office,13/05/2022,FIXTURE & FITTINGS,CHIEF FINANCIAL OFFICER,POSTURITE (UK) LTD,460030,2,583565114
BEIS,Met Office,13/05/2022,FIXTURE & FITTINGS,CHIEF FINANCIAL OFFICER,POSTURITE (UK) LTD,460030,111.76,583565114
BEIS,Met Office,13/05/2022,FIXTURE & FITTINGS,CHIEF FINANCIAL OFFICER,POSTURITE (UK) LTD,460030,302,583565114
BEIS,Met Office,13/05/2022,FIXTURE & FITTINGS,CHIEF FINANCIAL OFFICER,POSTURITE (UK) LTD,465660,-188.59,583565114
BEIS,Met Office,13/05/2022,11 SERVICES,TECHNOLOGY AND CIO,QA LTD,466305,-2088,864455303
BEIS,Met Office,13/05/2022,11 SERVICES,TECHNOLOGY AND CIO,QA LTD,466500,2088,864455303
BEIS,Met Office,13/05/2022,06 ACCOMMODATION,CHIEF FINANCIAL OFFICER,R BROOKS - TATTON ESTATE,467928,180,185664958
BEIS,Met Office,13/05/2022,FIXTURE & FITTINGS,CHIEF FINANCIAL OFFICER,POSTURITE (UK) LTD,467995,-14.95,583565114
BEIS,Met Office,13/05/2022,FIXTURE & FITTINGS,CHIEF FINANCIAL OFFICER,POSTURITE (UK) LTD,467995,-9.95,583565114
BEIS,Met Office,13/05/2022,FIXTURE & FITTINGS,CHIEF FINANCIAL OFFICER,POSTURITE (UK) LTD,467996,-60,583565114
BEIS,Met Office,13/05/2022,FIXTURE & FITTINGS,CHIEF FINANCIAL OFFICER,POSTURITE (UK) LTD,467996,-14,583565114
BEIS,Met Office,13/05/2022,FIXTURE & FITTINGS,CHIEF FINANCIAL OFFICER,POSTURITE (UK) LTD,467996,-98,583565114
BEIS,Met Office,13/05/2022,FIXTURE & FITTINGS,CHIEF FINANCIAL OFFICER,POSTURITE (UK) LTD,467996,-2,583565114
BEIS,Met Office,13/05/2022,FIXTURE & FITTINGS,CHIEF FINANCIAL OFFICER,POSTURITE (UK) LTD,467996,-111.76,583565114
BEIS,Met Office,13/05/2022,FIXTURE & FITTINGS,CHIEF FINANCIAL OFFICER,POSTURITE (UK) LTD,467996,-302,583565114
BEIS,Met Office,13/05/2022,06 ACCOMMODATION,CHIEF FINANCIAL OFFICER,South West Water Ltd,468084,4792.25,236873674
BEIS,Met Office,13/05/2022,11 SERVICES,CHIEF FINANCIAL OFFICER,MAWASEM LTD,468085,107719.94,197694731
BEIS,Met Office,13/05/2022,11 SERVICES,CHIEF FINANCIAL OFFICER,ANVIL MOBILE LIMITED,468086,156.07,981686175
BEIS,Met Office,13/05/2022,11 SERVICES,CHIEF FINANCIAL OFFICER,ANVIL MOBILE LIMITED,468086,5.75,981686175
BEIS,Met Office,13/05/2022,11 SERVICES,CHIEF FINANCIAL OFFICER,ANVIL MOBILE LIMITED,468086,36,981686175
BEIS,Met Office,13/05/2022,11 SERVICES,CHIEF FINANCIAL OFFICER,ANVIL MOBILE LIMITED,468086,173.13,981686175
BEIS,Met Office,13/05/2022,06 ACCOMMODATION,CHIEF FINANCIAL OFFICER,BUSINESS SUPPORT CENTRE LTD,468088,44.23,927365208
BEIS,Met Office,13/05/2022,08 SOFTWARE LICENCES,PEOPLE,CIPHR,468089,182414,242661124
BEIS,Met Office,13/05/2022,03 STAFF COSTS T&S,SERVICES,CHARLIE'S TRAVEL LTD,468090,158.33,783848277
BEIS,Met Office,13/05/2022,03 STAFF COSTS T&S,SERVICES,CHARLIE'S TRAVEL LTD,468091,462.87,783848277
BEIS,Met Office,13/05/2022,11 SERVICES,CHIEF FINANCIAL OFFICER,SURE SOUTH ATLANTIC LTD,468093,2124.59,NOVATREG
BEIS,Met Office,13/05/2022,11 SERVICES,CHIEF FINANCIAL OFFICER,SURE SOUTH ATLANTIC LTD,468094,4839.8,-
BEIS,Met Office,13/05/2022,11 SERVICES,CHIEF FINANCIAL OFFICER,SURE SOUTH ATLANTIC LTD,468095,783.46,-
BEIS,Met Office,13/05/2022,11 SERVICES,CHIEF FINANCIAL OFFICER,SURE SOUTH ATLANTIC LTD (ST HELENA),468096,1650,30005
BEIS,Met Office,13/05/2022,03 STAFF COSTS T&S,SERVICES,AIRPORT CAR RENTALS LTD,468097,320,-
BEIS,Met Office,13/05/2022,11 SERVICES,SERVICES,ADAM PHONES LTD,468122,133.95,538877093
BEIS,Met Office,13/05/2022,06 ACCOMMODATION,CHIEF FINANCIAL OFFICER,R BROOKS - TATTON ESTATE,468148,-1100,185664958
BEIS,Met Office,13/05/2022,06 ACCOMMODATION,CHIEF FINANCIAL OFFICER,R BROOKS - TATTON ESTATE,468150,-180,185664958
BEIS,Met Office,16/05/2022,STOCK,SERVICES,WESCOL LTD,464376,0,100293524
BEIS,Met Office,16/05/2022,STOCK,SERVICES,WESCOL LTD,464376,0,100293524
BEIS,Met Office,16/05/2022,TRADE CREDITORS,SERVICES,WESCOL LTD,464376,327.6,100293524
BEIS,Met Office,16/05/2022,TRADE CREDITORS,SERVICES,WESCOL LTD,464376,1045.44,100293524
BEIS,Met Office,16/05/2022,11 SERVICES,SERVICES,WESCOL LTD,464376,12,100293524
BEIS,Met Office,16/05/2022,11 SERVICES,PEOPLE,TP HEALTH LTD,468028,2313,883064608
BEIS,Met Office,16/05/2022,11 SERVICES,CHIEF FINANCIAL OFFICER,GAMMA TELECOM LTD,468037,242.85,823820344
BEIS,Met Office,16/05/2022,11 SERVICES,CHIEF FINANCIAL OFFICER,GAMMA TELECOM LTD,468037,27455.26,823820344
BEIS,Met Office,16/05/2022,11 SERVICES,CHIEF FINANCIAL OFFICER,JERSEY TELECOM,468040,1223.16,NOTVATREG
BEIS,Met Office,16/05/2022,11 SERVICES,CHIEF FINANCIAL OFFICER,EXPONENTIAL-E,468083,1061.35,GB798572653
BEIS,Met Office,16/05/2022,06 ACCOMMODATION,CHIEF FINANCIAL OFFICER,CALOR GAS LIMITED,468092,35.01,207610984
BEIS,Met Office,16/05/2022,11 SERVICES,CHIEF FINANCIAL OFFICER,BT CONFERENCING,468120,93.43,245719348
BEIS,Met Office,16/05/2022,06 ACCOMMODATION,CHIEF FINANCIAL OFFICER,TATTON ESTATE C/O FISHER GERMAN LLP,468149,1100,185 6649 58
BEIS,Met Office,16/05/2022,06 ACCOMMODATION,CHIEF FINANCIAL OFFICER,TATTON ESTATE C/O FISHER GERMAN LLP,468151,180,185 6649 58
BEIS,Met Office,16/05/2022,08 SOFTWARE LICENCES,TECHNOLOGY AND CIO,BOXXE,468157,22681,734245248
BEIS,Met Office,16/05/2022,13 MISCELLANEOUS,CHIEF FINANCIAL OFFICER,NORSCOTT VENDING SERVICES LTD,468161,11.7,751402071
BEIS,Met Office,16/05/2022,11 SERVICES,MARKETS,CULVERWELL ASSOCIATES LTD,468164,14250,386 6119 65
BEIS,Met Office,17/05/2022,05 CONSULTANTS,PEOPLE,THE INSIGHTS FAMILY,465213,12000,289355550
BEIS,Met Office,17/05/2022,11 SERVICES,TECHNOLOGY AND CIO,BAE SYSTEMS APPLIED INTELLIGENCE LIMITED,467804,23760,GB641407169
BEIS,Met Office,17/05/2022,04 CONTRACTORS,PEOPLE,MATRIX SCM LIMITED,468087,182547.69,249 5734 68
BEIS,Met Office,17/05/2022,06 ACCOMMODATION,CHIEF FINANCIAL OFFICER,EDF ENERGY CUSTOMERS PLC,468163,21716.41,523041202
BEIS,Met Office,17/05/2022,11 SERVICES,MARKETS,LHR BUSINESS SUPPORT CENTRE LTD,468165,13.75,927365404
BEIS,Met Office,17/05/2022,06 ACCOMMODATION,CHIEF FINANCIAL OFFICER,CARDIFF COMMISSIONING LTD,468181,450,484190139
BEIS,Met Office,17/05/2022,13 MISCELLANEOUS,CHIEF FINANCIAL OFFICER,BANNER GROUP LIMITED,468185,18.12,GB391085740
BEIS,Met Office,17/05/2022,11 SERVICES,CHIEF FINANCIAL OFFICER,ALLSTAR BUSINESS SOLUTIONS LTD,468198,3333.7,747880191
BEIS,Met Office,17/05/2022,11 SERVICES,CHIEF FINANCIAL OFFICER,INTEROUTE COMMUNICATIONS LIMITED,468201,7100,832 7071 39
BEIS,Met Office,17/05/2022,13 MISCELLANEOUS,MARKETS,COPYRIGHT LICENSING AGENCY LTD,468202,10652,386463025
BEIS,Met Office,17/05/2022,03 STAFF COSTS T&S,CHIEF FINANCIAL OFFICER,ENTERPRISE RENT A CAR UK LTD,468204,2024.24,215557314
BEIS,Met Office,18/05/2022,11 SERVICES,PROGRAMMES,UCAR INCOMING PAYMENTS,10627,12510.88,-
BEIS,Met Office,18/05/2022,07 EQUIPMENT,SERVICES,Vaisala Oyj,23746,865.53,FI01244162
BEIS,Met Office,18/05/2022,07 EQUIPMENT,SERVICES,Vaisala Oyj,23746,3606.37,FI01244162
BEIS,Met Office,18/05/2022,10 EQUIPMENT MAINTENANCE,SERVICES,RAYMETRICS S.A. (GREEK ACCOUNT),23753,912.6,EL999641589
BEIS,Met Office,18/05/2022,07 EQUIPMENT,SERVICES,ROHDE & SCHWARZ UK LTD,466488,122.74,215945163
BEIS,Met Office,18/05/2022,07 EQUIPMENT,SERVICES,ROHDE & SCHWARZ UK LTD,466488,5839.69,215945163
BEIS,Met Office,18/05/2022,07 EQUIPMENT,SERVICES,ROHDE & SCHWARZ UK LTD,466488,150.26,215945163
BEIS,Met Office,18/05/2022,06 ACCOMMODATION,CHIEF FINANCIAL OFFICER,JAMES & MARCIA BENJAMIN,467708,520,-
BEIS,Met Office,18/05/2022,12 INTERNATIONAL,MARKETS,MACITECHSY SOLUTIONS,468033,640,-
BEIS,Met Office,18/05/2022,10 EQUIPMENT MAINTENANCE,SERVICES,OVARRO TS LTD,468098,17825,648280518
BEIS,Met Office,18/05/2022,13 MISCELLANEOUS,PEOPLE,CALM WATERS COUNSELLING,468233,200,-
BEIS,Met Office,18/05/2022,12 INTERNATIONAL,MARKETS,REDACTED PERSONAL DATA,10643,4202,-
BEIS,Met Office,19/05/2022,11 SERVICES,CHIEF FINANCIAL OFFICER,OPEN TEXT UK LTD,454956,100,837871308
BEIS,Met Office,19/05/2022,11 SERVICES,CHIEF FINANCIAL OFFICER,OPEN TEXT UK LTD,455544,100,837871308
BEIS,Met Office,19/05/2022,11 SERVICES,CHIEF FINANCIAL OFFICER,OPEN TEXT UK LTD,461608,100,837871308
BEIS,Met Office,19/05/2022,03 STAFF COSTS T&S,MARKETS,SOLOMON & COMPANY (ST HELENA) PLC,462358,-95,-
BEIS,Met Office,19/05/2022,11 SERVICES,SCIENCE,University Of Exeter,465988,75256.67,142047795
BEIS,Met Office,19/05/2022,11 SERVICES,PROGRAMMES,University Of Southampton,467165,15000,568630414
BEIS,Met Office,19/05/2022,03 STAFF COSTS T&S,MARKETS,SOLOMON & COMPANY (ST HELENA) PLC,467684,80.2,-
BEIS,Met Office,19/05/2022,11 SERVICES,TECHNOLOGY AND CIO,CLOUDREACH EUROPE LIMITED,468180,4042.06,978187168
BEIS,Met Office,19/05/2022,11 SERVICES,CHIEF FINANCIAL OFFICER,HOGAN LOVELLS INTERNATIONAL LLP,468182,11410.41,GB123371543
BEIS,Met Office,19/05/2022,11 SERVICES,PEOPLE,MOMENTUM INCORPORATED,468183,6400,598958541
BEIS,Met Office,19/05/2022,11 SERVICES,PROGRAMMES,FCDO,468203,635.17,888813560
BEIS,Met Office,19/05/2022,11 SERVICES,CHIEF FINANCIAL OFFICER,BT GLOBAL SERVICES,468211,783.75,245719348
BEIS,Met Office,19/05/2022,13 MISCELLANEOUS,PEOPLE,EDENRED - CHILDCARE VOUCHERS,468235,150,649 503 520
BEIS,Met Office,19/05/2022,03 STAFF COSTS T&S,SERVICES,SOLOMON & COMPANY (ST HELENA) PLC,468239,151.6,-
BEIS,Met Office,20/05/2022,INFORMATION TECHNOLOGY,TECHNOLOGY AND CIO,COMPUTACENTER (UK) LTD,468159,14957.25,490334648
BEIS,Met Office,20/05/2022,11 SERVICES,TECHNOLOGY AND CIO,NEXUS OPEN SYSTEMS LTD,468232,569.14,723221673
BEIS,Met Office,20/05/2022,12 INTERNATIONAL,MARKETS,APPLIED SATELLITE TECHNOLOGY SYSTEMS LTD,468252,34.64,720108683
BEIS,Met Office,20/05/2022,11 SERVICES,SERVICES,APPLIED SATELLITE TECHNOLOGY SYSTEMS LTD,468253,305.21,720108683
BEIS,Met Office,20/05/2022,11 SERVICES,SERVICES,UK TELEMATICS LIMITED,468262,2348.64,GB763051643
BEIS,Met Office,20/05/2022,07 EQUIPMENT,TECHNOLOGY AND CIO,SSE CONTRACTING LTD,468263,2635.25,382894546
BEIS,Met Office,20/05/2022,07 EQUIPMENT,PROGRAMMES,SSE CONTRACTING LTD,468265,478,382894546
BEIS,Met Office,20/05/2022,07 EQUIPMENT,PROGRAMMES,SSE CONTRACTING LTD,468266,608.54,382894546
BEIS,Met Office,20/05/2022,07 EQUIPMENT,PROGRAMMES,SSE CONTRACTING LTD,468267,267.38,382894546
BEIS,Met Office,20/05/2022,08 SOFTWARE LICENCES,CHIEF FINANCIAL OFFICER,CEMAR,468269,135,915042161
BEIS,Met Office,20/05/2022,06 ACCOMMODATION,CHIEF FINANCIAL OFFICER,CALOR GAS LIMITED,468287,1258.3,207610984
BEIS,Met Office,23/05/2022,11 SERVICES,TECHNOLOGY AND CIO,BAE SYSTEMS APPLIED INTELLIGENCE LIMITED,464084,2025,GB641407169
BEIS,Met Office,23/05/2022,11 SERVICES,TECHNOLOGY AND CIO,BAE SYSTEMS APPLIED INTELLIGENCE LIMITED,464086,2193.75,GB641407169
BEIS,Met Office,23/05/2022,11 SERVICES,TECHNOLOGY AND CIO,BAE SYSTEMS APPLIED INTELLIGENCE LIMITED,467623,11699.13,GB641407169
BEIS,Met Office,23/05/2022,06 ACCOMMODATION,CHIEF FINANCIAL OFFICER,BIDVEST NOONAN UK LTD,467989,-92.43,GB847176988
BEIS,Met Office,23/05/2022,06 ACCOMMODATION,CHIEF FINANCIAL OFFICER,BIDVEST NOONAN UK LTD,467993,-46.22,GB847176988
BEIS,Met Office,23/05/2022,11 SERVICES,TECHNOLOGY AND CIO,BAE SYSTEMS APPLIED INTELLIGENCE LIMITED,468042,2164,GB641407169
BEIS,Met Office,23/05/2022,11 SERVICES,TECHNOLOGY AND CIO,BAE SYSTEMS APPLIED INTELLIGENCE LIMITED,468043,6600,GB641407169
BEIS,Met Office,23/05/2022,11 SERVICES,PROGRAMMES,BAE SYSTEMS APPLIED INTELLIGENCE LIMITED,468208,10279,GB641407169
BEIS,Met Office,23/05/2022,11 SERVICES,PROGRAMMES,BAE SYSTEMS APPLIED INTELLIGENCE LIMITED,468210,3752,GB641407169
BEIS,Met Office,23/05/2022,03 STAFF COSTS T&S,SERVICES,CHARLIE'S TRAVEL LTD,468261,25,783848277
BEIS,Met Office,23/05/2022,04 CONTRACTORS,PEOPLE,MATRIX SCM LIMITED,468274,220550.69,249 5734 68
BEIS,Met Office,23/05/2022,06 ACCOMMODATION,CHIEF FINANCIAL OFFICER,GRS BUILDING SERVICES SOUTH-WEST,468275,1838.43,-
BEIS,Met Office,23/05/2022,11 SERVICES,TECHNOLOGY AND CIO,SOFTWAREONE,468276,9016.33,GB 942 5301 43
BEIS,Met Office,23/05/2022,06 ACCOMMODATION,CHIEF FINANCIAL OFFICER,CBRE MANAGED SERVICES LTD,468299,24464.71,853936883
BEIS,Met Office,23/05/2022,06 ACCOMMODATION,CHIEF FINANCIAL OFFICER,CBRE MANAGED SERVICES LTD,468300,33399.57,853936883
BEIS,Met Office,23/05/2022,06 ACCOMMODATION,CHIEF FINANCIAL OFFICER,CBRE MANAGED SERVICES LTD,468301,149176.92,853936883
BEIS,Met Office,23/05/2022,06 ACCOMMODATION,CHIEF FINANCIAL OFFICER,BIDVEST NOONAN UK LTD,468302,457.31,GB847176988
BEIS,Met Office,23/05/2022,06 ACCOMMODATION,CHIEF FINANCIAL OFFICER,BIDVEST NOONAN UK LTD,468303,1013.83,GB847176988
BEIS,Met Office,23/05/2022,07 EQUIPMENT,SERVICES,LEMO (UK) LTD,468306,1308.6,193269240
BEIS,Met Office,23/05/2022,07 EQUIPMENT,SERVICES,M C ENGINEERING SERVICES,468309,159.28,813172066
BEIS,Met Office,23/05/2022,07 EQUIPMENT,SERVICES,M C ENGINEERING SERVICES,468310,598.2,813172066
BEIS,Met Office,24/05/2022,11 SERVICES,CHIEF FINANCIAL OFFICER,POSTURITE (UK) LTD,452548,803.52,583565114
BEIS,Met Office,24/05/2022,11 SERVICES,CHIEF FINANCIAL OFFICER,BT plc,458702,10295.24,245719348
BEIS,Met Office,24/05/2022,11 SERVICES,CHIEF FINANCIAL OFFICER,POSTURITE (UK) LTD,467158,172.35,583565114
BEIS,Met Office,24/05/2022,11 SERVICES,CHIEF FINANCIAL OFFICER,POSTURITE (UK) LTD,467257,27.51,583565114
BEIS,Met Office,24/05/2022,11 SERVICES,CHIEF FINANCIAL OFFICER,POSTURITE (UK) LTD,467263,73.78,583565114
BEIS,Met Office,24/05/2022,11 SERVICES,CHIEF FINANCIAL OFFICER,POSTURITE (UK) LTD,467264,59.54,583565114
BEIS,Met Office,24/05/2022,11 SERVICES,CHIEF FINANCIAL OFFICER,POSTURITE (UK) LTD,467574,787.71,583565114
BEIS,Met Office,24/05/2022,11 SERVICES,CHIEF FINANCIAL OFFICER,POSTURITE (UK) LTD,467577,50,583565114
BEIS,Met Office,24/05/2022,13 MISCELLANEOUS,PEOPLE,EDENRED - CHILDCARE VOUCHERS,468249,1259,649 503 520
BEIS,Met Office,24/05/2022,11 SERVICES,SERVICES,APPLIED SATELLITE TECHNOLOGY SYSTEMS LTD,468251,9862.65,720108683
BEIS,Met Office,24/05/2022,11 SERVICES,SERVICES,APPLIED SATELLITE TECHNOLOGY SYSTEMS LTD,468255,69.28,720108683
BEIS,Met Office,24/05/2022,11 SERVICES,SERVICES,APPLIED SATELLITE TECHNOLOGY SYSTEMS LTD,468256,69.28,720108683
BEIS,Met Office,24/05/2022,11 SERVICES,SERVICES,APPLIED SATELLITE TECHNOLOGY SYSTEMS LTD,468257,34.64,720108683
BEIS,Met Office,24/05/2022,11 SERVICES,SCIENCE,BITPOD LIMITED,468260,4581.78,124 9359 03
BEIS,Met Office,24/05/2022,11 SERVICES,CHIEF FINANCIAL OFFICER,POSTURITE (UK) LTD,468270,70.03,583565114
BEIS,Met Office,24/05/2022,07 EQUIPMENT,SERVICES,GH ZEAL LTD,468271,1760,648929087
BEIS,Met Office,24/05/2022,11 SERVICES,SERVICES,GH ZEAL LTD,468271,17.5,648929087
BEIS,Met Office,24/05/2022,11 SERVICES,CHIEF FINANCIAL OFFICER,POSTURITE (UK) LTD,468307,52.68,583565114
BEIS,Met Office,24/05/2022,07 EQUIPMENT,SERVICES,SENSING DEVICES LTD,468311,1019.7,163684738
BEIS,Met Office,24/05/2022,10 EQUIPMENT MAINTENANCE,TECHNOLOGY AND CIO,AXIAL SYSTEMS LTD,468312,9915.17,927444704
BEIS,Met Office,24/05/2022,08 SOFTWARE LICENCES,TECHNOLOGY AND CIO,ZOHO CORPORATION B.V.,468313,6200,NL855264263B01
BEIS,Met Office,24/05/2022,11 SERVICES,MARKETS,IPSOS (MARKET RESEARCH) LTD,468314,2800,443932151
BEIS,Met Office,24/05/2022,11 SERVICES,SERVICES,IPSOS (MARKET RESEARCH) LTD,468314,12400,443932151
BEIS,Met Office,24/05/2022,TRADE CREDITORS,OTHER,NATWEST COMMERCIAL CARDS DIVISION,468315,145313.9,N/A
BEIS,Met Office,24/05/2022,07 EQUIPMENT,CHIEF FINANCIAL OFFICER,NATWEST COMMERCIAL CARDS DIVISION,468316,3685.29,N/A
BEIS,Met Office,25/05/2022,07 EQUIPMENT,SERVICES,UC SAN DIEGO'S SCRIPPS INST. OF OCEANOGRAPHY,10589,10586.63,-
BEIS,Met Office,25/05/2022,11 SERVICES,PEOPLE,PLURALSIGHT,10616,23339.64,EU826020045
BEIS,Met Office,25/05/2022,11 SERVICES,SERVICES,NSSL GLOBAL LTD,10628,53.78,725151948
BEIS,Met Office,25/05/2022,11 SERVICES,SERVICES,NSSL GLOBAL LTD,10629,69.16,725151948
BEIS,Met Office,25/05/2022,08 SOFTWARE LICENCES,TECHNOLOGY AND CIO,HARMAN CONNECTED SERVICES,10630,42145.43,-
BEIS,Met Office,25/05/2022,08 SOFTWARE LICENCES,TECHNOLOGY AND CIO,HARMAN CONNECTED SERVICES,10630,28096.96,-
BEIS,Met Office,25/05/2022,07 EQUIPMENT,SERVICES,PACIFIC GYRE,10636,10818.58,-
BEIS,Met Office,25/05/2022,11 SERVICES,MARKETS,"BASILIO SOZINHO CUBULA SERVI�OS, E.I.",10647,4786.13,N/A
BEIS,Met Office,25/05/2022,11 SERVICES,SCIENCE,"LINDE GAS ESPANA, S.A.U.",23757,1140.1,-
BEIS,Met Office,25/05/2022,12 INTERNATIONAL,MARKETS,EUROPEAN METEOROLOGICAL SOCIETY,23826,1052.05,-
BEIS,Met Office,25/05/2022,11 SERVICES,MARKETS,CONSULTEC,23848,8327.54,400005915
BEIS,Met Office,25/05/2022,REVENUE,MARKETS,DEUTSCHES ZENTRUM FUER LUFT UND RAUMFAHRT EV,23853,56777.9,DE121965658
BEIS,Met Office,25/05/2022,REVENUE,MARKETS,Smhi,23855,17597.39,SE202100069601
BEIS,Met Office,25/05/2022,REVENUE,MARKETS,DEUTSCHES ZENTRUM FUER LUFT UND RAUMFAHRT EV,23860,99915.47,DE121965658
BEIS,Met Office,25/05/2022,11 SERVICES,MARKETS,CONSULTEC,23867,333.11,400005915
BEIS,Met Office,25/05/2022,13 MISCELLANEOUS,OFFICE OF THE CEO,THOMSON REUTERS (PROFESSIONAL) UK LTD,463432,10527.92,900548743
BEIS,Met Office,25/05/2022,13 MISCELLANEOUS,OFFICE OF THE CEO,THOMSON REUTERS (PROFESSIONAL) UK LTD,467086,-10527.92,900548743
BEIS,Met Office,25/05/2022,11 SERVICES,PROGRAMMES,RAIN PLUS PLUS LIMITED,467512,31400,-
BEIS,Met Office,25/05/2022,11 SERVICES,PROGRAMMES,"IBL SOFTWARE ENGINEERING, SPOL S.R.O.",467555,2399.52,SK2020241883
BEIS,Met Office,25/05/2022,06 ACCOMMODATION,CHIEF FINANCIAL OFFICER,STRINGFELLOW BUILDING CONTRACTORS LTD.,468258,1315,155807746
BEIS,Met Office,25/05/2022,06 ACCOMMODATION,CHIEF FINANCIAL OFFICER,STRINGFELLOW BUILDING CONTRACTORS LTD.,468259,3424,155807746
BEIS,Met Office,25/05/2022,07 EQUIPMENT,TECHNOLOGY AND CIO,SSE CONTRACTING LTD,468264,2493.9,382894546
BEIS,Met Office,25/05/2022,11 SERVICES,CHIEF FINANCIAL OFFICER,CABINET OFFICE - COF LEAD ACCOUNT,468268,33621.67,-
BEIS,Met Office,25/05/2022,06 ACCOMMODATION,CHIEF FINANCIAL OFFICER,STRINGFELLOW BUILDING CONTRACTORS LTD.,468272,4200,155807746
BEIS,Met Office,25/05/2022,11 SERVICES,PROGRAMMES,BJSS LIMITED,468305,82900,613295452
BEIS,Met Office,25/05/2022,07 EQUIPMENT,MARKETS,COMPUTACENTER (UK) LTD,468346,1232.7,490334648
BEIS,Met Office,25/05/2022,12 INTERNATIONAL,MARKETS,MACITECHSY SOLUTIONS,468349,1600,-
BEIS,Met Office,25/05/2022,12 INTERNATIONAL,MARKETS,MACITECHSY SOLUTIONS,468349,1197.74,-
BEIS,Met Office,25/05/2022,11 SERVICES,PROGRAMMES,FCDO,468361,327.23,888813560
BEIS,Met Office,25/05/2022,11 SERVICES,PROGRAMMES,FCDO,468361,379.97,888813560
BEIS,Met Office,25/05/2022,11 SERVICES,MARKETS,ULTRA ELECTRONICS LTD NUCLEAR CONTROL SYSTEMS,468363,19156.01,123340754
BEIS,Met Office,25/05/2022,11 SERVICES,MARKETS,ULTRA ELECTRONICS LTD NUCLEAR CONTROL SYSTEMS,468363,1231.49,123340754
BEIS,Met Office,25/05/2022,13 MISCELLANEOUS,SCIENCE,University Of Oxford,468365,333.33,125506730
BEIS,Met Office,25/05/2022,03 STAFF COSTS T&S,CHIEF FINANCIAL OFFICER,ENTERPRISE RENT A CAR UK LTD,468368,2522.58,215557314
BEIS,Met Office,25/05/2022,06 ACCOMMODATION,CHIEF FINANCIAL OFFICER,CARBON CONTROL LIMITED,468378,3840,923 978678
BEIS,Met Office,25/05/2022,07 EQUIPMENT,SCIENCE,CAMTEC ENGINEERING LTD,468382,794,527033861
BEIS,Met Office,25/05/2022,11 SERVICES,CHIEF FINANCIAL OFFICER,POSTURITE (UK) LTD,468385,224.34,583565114
BEIS,Met Office,27/05/2022,11 SERVICES,TECHNOLOGY AND CIO,BAE SYSTEMS APPLIED INTELLIGENCE LIMITED,464878,4950,GB641407169
BEIS,Met Office,27/05/2022,06 ACCOMMODATION,CHIEF FINANCIAL OFFICER,Exeter City Council,465747,140288,142335594
BEIS,Met Office,27/05/2022,11 SERVICES,TECHNOLOGY AND CIO,BAE SYSTEMS APPLIED INTELLIGENCE LIMITED,467052,3752,GB641407169
BEIS,Met Office,27/05/2022,07 EQUIPMENT,SERVICES,APEX SECURITY ENGINEERING LTD,467398,12375,676764381
BEIS,Met Office,27/05/2022,07 EQUIPMENT,SERVICES,APEX SECURITY ENGINEERING LTD,467398,1984,676764381
BEIS,Met Office,27/05/2022,07 EQUIPMENT,SERVICES,APEX SECURITY ENGINEERING LTD,467398,3272,676764381
BEIS,Met Office,27/05/2022,07 EQUIPMENT,SERVICES,APEX SECURITY ENGINEERING LTD,467398,285,676764381
BEIS,Met Office,27/05/2022,07 EQUIPMENT,SERVICES,APEX SECURITY ENGINEERING LTD,467398,16011,676764381
BEIS,Met Office,27/05/2022,07 EQUIPMENT,SERVICES,APEX SECURITY ENGINEERING LTD,467398,6726,676764381
BEIS,Met Office,27/05/2022,07 EQUIPMENT,SERVICES,APEX SECURITY ENGINEERING LTD,467398,285,676764381
BEIS,Met Office,27/05/2022,07 EQUIPMENT,SERVICES,APEX SECURITY ENGINEERING LTD,467398,285,676764381
BEIS,Met Office,27/05/2022,07 EQUIPMENT,SERVICES,APEX SECURITY ENGINEERING LTD,467398,5430,676764381
BEIS,Met Office,27/05/2022,07 EQUIPMENT,SERVICES,APEX SECURITY ENGINEERING LTD,467398,370,676764381
BEIS,Met Office,27/05/2022,11 SERVICES,MARKETS,JCT Ltd,468160,1248,714 3761 44
BEIS,Met Office,27/05/2022,11 SERVICES,PROGRAMMES,University Of Reading,468273,35000,200012659
BEIS,Met Office,27/05/2022,11 SERVICES,CHIEF FINANCIAL OFFICER,INFOGRID,468348,33706,293809562
BEIS,Met Office,27/05/2022,FIXTURE & FITTINGS,CHIEF FINANCIAL OFFICER,FMS INTERIOR SERVICES LTD,468352,157.76,922056940
BEIS,Met Office,27/05/2022,FIXTURE & FITTINGS,CHIEF FINANCIAL OFFICER,FMS INTERIOR SERVICES LTD,468352,1.58,922056940
BEIS,Met Office,27/05/2022,06 ACCOMMODATION,CHIEF FINANCIAL OFFICER,Biffa Waste Services Ltd,468353,185.3,537911627
BEIS,Met Office,27/05/2022,06 ACCOMMODATION,CHIEF FINANCIAL OFFICER,Biffa Waste Services Ltd,468354,686.97,537911627
BEIS,Met Office,27/05/2022,06 ACCOMMODATION,CHIEF FINANCIAL OFFICER,Biffa Waste Services Ltd,468355,67.47,537911627
BEIS,Met Office,27/05/2022,06 ACCOMMODATION,CHIEF FINANCIAL OFFICER,Biffa Waste Services Ltd,468356,154.1,537911627
BEIS,Met Office,27/05/2022,06 ACCOMMODATION,CHIEF FINANCIAL OFFICER,Biffa Waste Services Ltd,468357,405.86,537911627
BEIS,Met Office,27/05/2022,06 ACCOMMODATION,CHIEF FINANCIAL OFFICER,Biffa Waste Services Ltd,468358,662.53,537911627
BEIS,Met Office,27/05/2022,06 ACCOMMODATION,CHIEF FINANCIAL OFFICER,Biffa Waste Services Ltd,468359,312.65,537911627
BEIS,Met Office,27/05/2022,06 ACCOMMODATION,CHIEF FINANCIAL OFFICER,Biffa Waste Services Ltd,468360,696.98,537911627
BEIS,Met Office,27/05/2022,06 ACCOMMODATION,CHIEF FINANCIAL OFFICER,Mitie Landscapes Ltd,468364,6815.38,GB 416 706 654
BEIS,Met Office,27/05/2022,13 MISCELLANEOUS,SCIENCE,University Of Oxford,468369,333.33,125506730
BEIS,Met Office,27/05/2022,06 ACCOMMODATION,CHIEF FINANCIAL OFFICER,RIVER RIDGE,468370,50,176286083
BEIS,Met Office,27/05/2022,06 ACCOMMODATION,CHIEF FINANCIAL OFFICER,OCS Group UK Limited,468371,150111.61,GB238034379
BEIS,Met Office,27/05/2022,06 ACCOMMODATION,CHIEF FINANCIAL OFFICER,South West Water Ltd,468373,662.13,236873674
BEIS,Met Office,27/05/2022,06 ACCOMMODATION,CHIEF FINANCIAL OFFICER,South West Water Ltd,468374,90.94,236873674
BEIS,Met Office,27/05/2022,06 ACCOMMODATION,CHIEF FINANCIAL OFFICER,ST MODWEN VENTURES LTD,468375,862.5,975081008
BEIS,Met Office,27/05/2022,03 STAFF COSTS T&S,SERVICES,CHARLIE'S TRAVEL LTD,468376,158.33,783848277
BEIS,Met Office,27/05/2022,03 STAFF COSTS T&S,SERVICES,CHARLIE'S TRAVEL LTD,468377,33.33,783848277
BEIS,Met Office,27/05/2022,08 SOFTWARE LICENCES,TECHNOLOGY AND CIO,PROSPERON NETWORKS LTD,468383,3622.76,889545649
BEIS,Met Office,27/05/2022,08 SOFTWARE LICENCES,CHIEF FINANCIAL OFFICER,CEMAR,468384,90,915042161
BEIS,Met Office,27/05/2022,06 ACCOMMODATION,CHIEF FINANCIAL OFFICER,CBRE MANAGED SERVICES LTD,468388,3609.43,853936883
BEIS,Met Office,27/05/2022,06 ACCOMMODATION,CHIEF FINANCIAL OFFICER,CBRE MANAGED SERVICES LTD,468389,10080,853936883
BEIS,Met Office,27/05/2022,06 ACCOMMODATION,CHIEF FINANCIAL OFFICER,CBRE MANAGED SERVICES LTD,468390,27142.61,853936883
BEIS,Met Office,27/05/2022,03 STAFF COSTS T&S,CHIEF FINANCIAL OFFICER,ENTERPRISE RENT A CAR UK LTD,468424,303.8,215557314
BEIS,Met Office,30/05/2022,08 SOFTWARE LICENCES,PEOPLE,TIVIAN LIMITED,452777,575,GB 864 1783 01
BEIS,Met Office,30/05/2022,11 SERVICES,MARKETS,FCDO,463150,6806.46,888813560
BEIS,Met Office,30/05/2022,11 SERVICES,TECHNOLOGY AND CIO,BAE SYSTEMS APPLIED INTELLIGENCE LIMITED,464574,3300,GB641407169
BEIS,Met Office,30/05/2022,11 SERVICES,TECHNOLOGY AND CIO,BAE SYSTEMS APPLIED INTELLIGENCE LIMITED,465219,2814,GB641407169
BEIS,Met Office,30/05/2022,11 SERVICES,TECHNOLOGY AND CIO,BAE SYSTEMS APPLIED INTELLIGENCE LIMITED,468044,5940,GB641407169
BEIS,Met Office,30/05/2022,11 SERVICES,PROGRAMMES,BJSS LIMITED,468304,15637,613295452
BEIS,Met Office,30/05/2022,11 SERVICES,PROGRAMMES,BAE SYSTEMS APPLIED INTELLIGENCE LIMITED,468351,7340.85,GB641407169
BEIS,Met Office,30/05/2022,11 SERVICES,PROGRAMMES,BAE SYSTEMS APPLIED INTELLIGENCE LIMITED,468351,16863.5,GB641407169
BEIS,Met Office,30/05/2022,11 SERVICES,PROGRAMMES,BAE SYSTEMS APPLIED INTELLIGENCE LIMITED,468351,9061.75,GB641407169
BEIS,Met Office,30/05/2022,11 SERVICES,PROGRAMMES,BAE SYSTEMS APPLIED INTELLIGENCE LIMITED,468351,15008,GB641407169
BEIS,Met Office,30/05/2022,11 SERVICES,PROGRAMMES,BAE SYSTEMS APPLIED INTELLIGENCE LIMITED,468351,15008,GB641407169
BEIS,Met Office,30/05/2022,11 SERVICES,PROGRAMMES,BAE SYSTEMS APPLIED INTELLIGENCE LIMITED,468351,18317.25,GB641407169
BEIS,Met Office,30/05/2022,11 SERVICES,PROGRAMMES,BAE SYSTEMS APPLIED INTELLIGENCE LIMITED,468351,17822,GB641407169
BEIS,Met Office,30/05/2022,11 SERVICES,PROGRAMMES,BAE SYSTEMS APPLIED INTELLIGENCE LIMITED,468351,17704.75,GB641407169
BEIS,Met Office,30/05/2022,11 SERVICES,PROGRAMMES,BAE SYSTEMS APPLIED INTELLIGENCE LIMITED,468351,6600,GB641407169
BEIS,Met Office,30/05/2022,11 SERVICES,PROGRAMMES,BAE SYSTEMS APPLIED INTELLIGENCE LIMITED,468351,13738.52,GB641407169
BEIS,Met Office,30/05/2022,11 SERVICES,PROGRAMMES,BAE SYSTEMS APPLIED INTELLIGENCE LIMITED,468351,19771,GB641407169
BEIS,Met Office,30/05/2022,11 SERVICES,PROGRAMMES,BAE SYSTEMS APPLIED INTELLIGENCE LIMITED,468351,16884,GB641407169
BEIS,Met Office,30/05/2022,11 SERVICES,MARKETS,FCDO,468362,3238.29,888813560
BEIS,Met Office,30/05/2022,11 SERVICES,PROGRAMMES,BJSS LIMITED,468386,11522,613295452
BEIS,Met Office,30/05/2022,13 MISCELLANEOUS,PEOPLE,HEALTH MANAGEMENT LTD,468450,490,792250621
BEIS,Met Office,30/05/2022,06 ACCOMMODATION,CHIEF FINANCIAL OFFICER,MITIE SECURITY LTD,468451,375,416706654
BEIS,Met Office,30/05/2022,08 SOFTWARE LICENCES,TECHNOLOGY AND CIO,AXIAL SYSTEMS LTD,468457,1699.92,927444704
BEIS,Met Office,30/05/2022,07 EQUIPMENT,TECHNOLOGY AND CIO,COMPUTACENTER (UK) LTD,468466,9377,490334648
BEIS,Met Office,30/05/2022,08 SOFTWARE LICENCES,TECHNOLOGY AND CIO,COMPUTACENTER (UK) LTD,468466,77185,490334648
BEIS,Met Office,30/05/2022,08 SOFTWARE LICENCES,TECHNOLOGY AND CIO,COMPUTACENTER (UK) LTD,468466,1857.51,490334648
BEIS,Met Office,30/05/2022,11 SERVICES,CHIEF FINANCIAL OFFICER,POSTURITE (UK) LTD,468467,73.18,583565114
BEIS,Met Office,30/05/2022,08 SOFTWARE LICENCES,TECHNOLOGY AND CIO,COMPUTACENTER (UK) LTD,468472,1092.67,490334648
BEIS,Met Office,30/05/2022,08 SOFTWARE LICENCES,TECHNOLOGY AND CIO,LOOP1 UK LIMITED,468479,4103.26,2631536
BEIS,Met Office,30/05/2022,04 CONTRACTORS,PEOPLE,MATRIX SCM LIMITED,468480,306991.94,249 5734 68
BEIS,Met Office,30/05/2022,10 EQUIPMENT MAINTENANCE,TECHNOLOGY AND CIO,GCHQ PUBLIC ACCOUNT - CESG,468481,24252.57,888813658
BEIS,Met Office,30/05/2022,11 SERVICES,PEOPLE,ACTIVE LEARNING TEAM LTD,468483,2219.96,-
BEIS,Met Office,30/05/2022,11 SERVICES,SCIENCE,University Of Leeds,468494,83333.25,613451470
BEIS,Met Office,31/05/2022,11 SERVICES,PROGRAMMES,University Of Reading,468452,90950.4,200012659
BEIS,Met Office,31/05/2022,11 SERVICES,PROGRAMMES,University Of Reading,468454,149055.16,200012659
BEIS,Met Office,31/05/2022,11 SERVICES,CHIEF FINANCIAL OFFICER,MITIE SECURITY LTD,468485,3117,416706654
BEIS,Met Office,31/05/2022,11 SERVICES,CHIEF FINANCIAL OFFICER,MITIE SECURITY LTD,468485,7273.5,416706654
BEIS,Met Office,31/05/2022,11 SERVICES,CHIEF FINANCIAL OFFICER,MITIE SECURITY LTD,468486,20780.59,416706654
